fUSD/lending_fUSD_20260412
["ID","MTS","AMOUNT","RATE_DAILY","PERIOD"]
[420342479,1776005432104,-150.0,0.00014203,2]
[420342480,1776005432123,-150.0,0.00014203,2]
[420342481,1776005432145,-27.69978017,0.00014296,2]
[420342482,1776005432162,-122.30021983,0.00014296,2]
[420342483,1776005432177,-52.59852073,0.00014388,2]
[420342484,1776005432186,-150.0,0.00014388,2]
[420342485,1776005432201,-150.0,0.000144,2]
[420342486,1776005432231,-150.0,0.00014409,2]
[420342487,1776005432244,-150.0,0.00014409,2]
[420342488,1776005432274,-150.0,0.00014428,2]
[420342489,1776005432303,-150.0,0.00014428,2]
[420342491,1776005432312,-150.0,0.00014446,2]
[420342493,1776005432377,-150.0,0.00014477,2]
[420342495,1776005432386,-150.0,0.00014477,2]
[420342498,1776005432406,-150.0,0.00014481,2]
[420342500,1776005432419,-150.0,0.00014481,2]
[420342502,1776005432429,-150.0,0.00014518,2]
[420342504,1776005432443,-150.0,0.00014541,2]
[420342506,1776005432453,-150.0,0.00014546,2]
[420342508,1776005432466,-150.0,0.00014546,2]
[420342510,1776005432477,-150.0,0.00014567,2]
[420342512,1776005432487,-150.0,0.00014574,2]
[420342514,1776005432504,-150.0,0.00014574,2]
[420342517,1776005432514,-150.0,0.00014597,2]
[420342518,1776005432523,-150.0,0.00014614,2]
[420342520,1776005432542,-150.0,0.00014614,2]
[420342522,1776005432552,-150.0,0.00014654,2]
[420342524,1776005432573,-150.0,0.00014654,2]
[420342526,1776005432584,-150.0,0.00014667,2]
[420342527,1776005432593,-150.0,0.00014667,2]
[420342530,1776005432616,-150.0,0.00014683,2]
[420342531,1776005432626,-150.0,0.00014683,2]
[420342533,1776005432636,-150.0,0.00014688,2]
[420342535,1776005432653,-150.0,0.00014752,2]
[420342537,1776005432669,-150.0,0.00014752,2]
[420342539,1776005432678,-150.0,0.0001476,2]
[420342542,1776005432692,-150.0,0.0001476,2]
[420342544,1776005432707,-150.0,0.00014766,2]
[420342546,1776005432716,-150.0,0.00014795,2]
[420342547,1776005432736,-150.0,0.0001481,2]
[420342549,1776005432745,-150.0,0.0001482,2]
[420342552,1776005432755,-150.0,0.0001482,2]
[420342554,1776005432772,-150.0,0.00014834,2]
[420342556,1776005432784,-150.0,0.00014853,2]
[420342557,1776005432794,-150.0,0.00014853,2]
[420342559,1776005432803,-150.0,0.00014879,2]
[420342561,1776005432821,-150.0,0.00014879,2]
[420342562,1776005432830,-150.0,0.00014889,2]
[420342563,1776005432839,-150.0,0.00014889,2]
[420342565,1776005432849,-150.0,0.00014931,2]
[420342567,1776005432866,-150.0,0.00014945,2]
[420342569,1776005432875,-150.0,0.00014945,2]
[420342572,1776005432894,-150.0,0.00014957,2]
[420342574,1776005432905,-150.0,0.00014957,2]
[420342576,1776005432916,-150.0,0.00014992,2]
[420342578,1776005432930,-150.0,0.00014992,2]
[420342580,1776005432942,-150.0,0.00014992,2]
[420342582,1776005432952,-150.0,0.00014992,2]
[420342584,1776005432962,-150.0,0.00015026,2]
[420342586,1776005432975,-150.0,0.00015026,2]
[420342588,1776005432984,-150.0,0.00015038,2]
[420342590,1776005432995,-150.0,0.00015038,2]
[420342592,1776005433005,-150.0,0.00015052,2]
[420342594,1776005433023,-150.0,0.00015095,2]
[420342596,1776005433035,-150.0,0.00015095,2]
[420342598,1776005433048,-150.0,0.00015105,2]
[420342600,1776005433063,-150.0,0.00015105,2]
[420342602,1776005433075,-150.0,0.00015131,2]
[420342604,1776005433090,-150.0,0.00015131,2]
[420342606,1776005433112,-150.0,0.0001515,2]
[420342608,1776005433133,-150.0,0.00015163,2]
[420342611,1776005433157,-150.0,0.00015163,2]
[420342613,1776005433177,-150.0,0.00015174,2]
[420342614,1776005433204,-150.0,0.00015189,2]
[420342617,1776005433239,-150.0,0.00015217,2]
[420342619,1776005433254,-150.0,0.00015224,2]
[420342620,1776005433275,-150.0,0.00015224,2]
[420342623,1776005433291,-150.0,0.00015232,2]
[420342625,1776005433322,-150.0,0.00015232,2]
[420342627,1776005433332,-150.0,0.00015295,2]
[420342628,1776005433348,-150.0,0.00015301,2]
[420342631,1776005433369,-150.0,0.00015301,2]
[420342633,1776005433379,-150.0,0.00015317,2]
[420342634,1776005433406,-150.0,0.00015317,2]
[420342636,1776005433415,-150.0,0.0001533,2]
[420342638,1776005433425,-150.0,0.0001533,2]
[420342640,1776005433462,-150.0,0.00015369,2]
[420342642,1776005433472,-150.0,0.00015369,2]
[420342644,1776005433481,-150.0,0.00015386,2]
[420342646,1776005433511,-150.0,0.0001541,2]
[420342648,1776005433520,-150.0,0.0001541,2]
[420342650,1776005433535,-150.0,0.00015417,2]
[420342651,1776005433564,-150.0,0.00015438,2]
[420342653,1776005433574,-150.0,0.00015438,2]
[420342655,1776005433586,-150.0,0.00015443,2]
[420342657,1776005433607,-150.0,0.00015465,2]
[420342659,1776005433617,-1212.072,0.00015484,2]
[420342661,1776005433630,-169.886,0.00015484,2]
[420342663,1776005433643,-150.0,0.00015502,2]
[420342665,1776005433656,-150.0,0.00015502,2]
[420342667,1776005433666,-150.0,0.00015506,2]
[420342669,1776005433680,-150.0,0.00015506,2]
[420342671,1776005433693,-150.0,0.00015538,2]
[420342673,1776005433702,-150.0,0.00015555,2]
[420342675,1776005433712,-150.0,0.00015555,2]
[420342677,1776005433731,-150.0,0.00015575,2]
[420342679,1776005433741,-150.0,0.00015575,2]
[420342681,1776005433751,-150.0,0.00015584,2]
[420342683,1776005433768,-150.0,0.00015595,2]
[420342685,1776005433777,-150.0,0.00015595,2]
[420342687,1776005433789,-1680.0,0.00015604,2]
[420342689,1776005433798,-150.0,0.00015644,2]
[420342691,1776005433815,-150.0,0.00015644,2]
[420342693,1776005433824,-150.0,0.00015659,2]
[420342695,1776005433838,-150.0,0.00015668,2]
[420342697,1776005433853,-500.0,0.00015673,2]
[420342699,1776005433863,-500.0,0.00015673,2]
[420342701,1776005433886,-500.0,0.00015673,2]
[420342704,1776005433896,-500.0,0.00015673,2]
[420342706,1776005433906,-500.0,0.00015673,2]
[420342707,1776005433921,-458.63773172,0.00015673,2]
[420342709,1776005433940,-500.0,0.00015673,2]
[420342710,1776005433949,-150.0,0.00015688,2]
[420342711,1776005433959,-150.0,0.00015688,2]
[420342712,1776005433974,-4152.7093,0.000157,2]
[420342713,1776005433985,-10126.0905,0.000157,2]
[420342714,1776005433995,-150.0,0.00015712,2]
[420342715,1776005434004,-150.0,0.00015712,2]
[420342716,1776005434023,-500.0,0.00015773,2]
[420342717,1776005434046,-500.54897623,0.00015773,2]
[420342718,1776005434055,-500.42642899,0.00015773,2]
[420342719,1776005434065,-225.89548749,0.00015781,2]
[420342720,1776005434087,-179.4817088,0.00015781,2]
[420342721,1776005434097,-291.62336101,0.00015781,2]
[420342723,1776005434107,-164.97415804,0.00015781,2]
[420342725,1776005434126,-176.6837889,0.00015781,2]
[420342727,1776005434137,-298.96442628,0.00015781,2]
[420342730,1776005434147,-259.74988375,0.00015781,2]
[420342731,1776005434169,-158.13442073,0.00015781,2]
[420342733,1776005434179,-223.27324399,0.00015781,2]
[420342735,1776005434191,-173.69027535,0.00015781,2]
[420342737,1776005434206,-285.31876457,0.00015781,2]
[420342739,1776005434216,-210.69904595,0.00015781,2]
[420342741,1776005434225,-500.0,0.00015799,2]
[420342743,1776005434237,-498.20124939,0.00015799,2]
[420342745,1776005434257,-1.79875061,0.00015799,2]
[420342747,1776005434267,-500.0,0.00015799,2]
[420342749,1776005434287,-317.73184942,0.00015799,2]
[420342751,1776005434296,-500.0,0.00015799,2]
[420342753,1776005434326,-500.0,0.00015799,2]
[420342756,1776005434337,-90.96097786,0.00015799,2]
[420342758,1776005434380,-409.03902214,0.00015799,2]
[420342760,1776005434395,-500.0,0.00015799,2]
[420342763,1776005434410,-99.71097787,0.00015799,2]
[420342765,1776005434430,-299.23478,0.00015799,2]
[420342767,1776005434479,-101.05424213,0.00015799,2]
[420342769,1776005434490,-500.0,0.00015799,2]
[420342771,1776005434515,-150.0,0.000158,2]
[420342773,1776005434568,-5.30039136,0.00015984,2]
[420342775,1776005434580,-174.69960864,0.00015984,2]
[420342777,1776005434595,-250.0,0.00016,2]
[420342779,1776005434621,-251.05,0.00016,2]
[420342781,1776005434631,-151.0,0.000161,2]
[420342783,1776005434641,-671.93182394,0.00016221,2]
[420342785,1776005434656,-210.60663321,0.00016221,2]
[420342787,1776005434666,-280.04748681,0.0001632,2]
[420342789,1776005434676,-500.93469977,0.00016321,2]
[420342790,1776005434685,-2110.47413286,0.00016438,2]
[420342793,1776005434704,-389.52586714,0.00016438,2]
[420342795,1776005434714,-1643.79512712,0.00016438,2]
[420342797,1776005434725,-644.71052742,0.00016438,2]
[420342799,1776005434744,-211.49434546,0.00016438,2]
[420342800,1776005434767,-2500.0,0.00016438,2]
[420342801,1776005434777,-2500.0,0.00016438,2]
[420342802,1776005434795,-2500.0,0.00016438,2]
[420342803,1776005434810,-151.0,0.00016712,2]
[420342804,1776005434819,-187.22,0.00016712,2]
[420342805,1776005434832,-2351.0,0.00017164,2]
[420342806,1776005434856,-160.0,0.00017225,2]
[420342807,1776005434866,-1374.12009819,0.00018881,2]
[420342808,1776005434883,-1917.87990181,0.00018881,2]
[420342809,1776005434915,-2533.53059211,0.00019151,2]
[420342810,1776005434937,-659.1457183,0.00019151,2]
[420342811,1776005434954,-952.0,0.00019151,2]
[420342812,1776005434980,-6656.3528631,0.00019151,2]
[420342813,1776005434994,-253.23161255,0.00019151,2]
[420342814,1776005435028,-2088.41628585,0.00019151,2]
[420342815,1776005435042,-615.73022702,0.00019151,2]
[420342816,1776005435071,-388.019697,0.00019151,2]
[420342817,1776005435084,-3442.96051054,0.00019151,2]
[420342818,1776005435094,-150.0,0.00019999,2]
[420342819,1776005435115,-162.84672945,0.00019999,2]
[420342820,1776005435125,-2500.0,0.00019999,2]
[420342821,1776005435136,-151.0,0.0002,2]
[420342822,1776005435151,-162.0,0.0002,2]
[420342823,1776005435167,-500.0,0.00020769,2]
[420342824,1776005435177,-155.0485,0.000208,2]
[420342825,1776005435192,-170.43091713,0.000209,2]
[420342826,1776005435209,-162.0,0.00021,2]
[420342827,1776005435221,-162.0,0.00022,2]
[420342828,1776005435235,-151.0,0.000225,14]
[420342829,1776005435260,-170.43091707,0.00022889,2]
[420342830,1776005435270,-162.0,0.00023,2]
[420342831,1776005435281,-554.91,0.00023,2]
[420342832,1776005435302,-554.91,0.00023,2]
[420342833,1776005435312,-554.91,0.00023,2]
[420342834,1776005435322,-554.91,0.00023,2]
[420342835,1776005435339,-712.13,0.00023,2]
[420342836,1776005435353,-162.0,0.00024,2]
[420342837,1776005435362,-250.0,0.00024173,5]
[420342838,1776005435383,-170.43091707,0.00024879,2]
[420342839,1776005435407,-400.0,0.00025,7]
[420342840,1776005435427,-151.0,0.00025,2]
[420342841,1776005435440,-151.0,0.00025,4]
[420342842,1776005435475,-171.0,0.00025,2]
[420342843,1776005435486,-2000.0,0.0002508,2]
[420342844,1776005435529,-2000.0,0.00025119,2]
[420342845,1776005435566,-503.74697581,0.00025553,2]
[420342846,1776005435577,-160.2669,0.000258,2]
[420342847,1776005435603,-200.0,0.00025843,2]
[420342848,1776005435625,-500.0,0.0002585,2]
[420342849,1776005435647,-773.375,0.00026138,2]
[420342850,1776005435665,-1047.0,0.00026138,2]
[420342851,1776005435674,-239.584,0.00026138,2]
[420342852,1776005435702,-416.0,0.00026138,2]
[420342853,1776005435716,-2056.12,0.00026173,2]
[420342854,1776005435726,-170.43091707,0.00026868,2]
[420342855,1776005435756,-509.0,0.00027137,2]
[420342856,1776005435766,-566.88,0.00027397,20]
[420342857,1776005435790,-388.49,0.000274,7]
[420342858,1776005435803,-150.0,0.00028191,21]
[420342859,1776005435812,-155.01,0.000282,7]
[420342860,1776005435822,-654.0,0.00028255,5]
[420342861,1776005435841,-2000.0,0.00028259,2]
[420342862,1776005435850,-151.0,0.000285,5]
[420342863,1776005435859,-151.0,0.000285,5]
[420342864,1776005435869,-170.43091707,0.00028857,2]
[420342865,1776005435886,-780.22746428,0.00029138,2]
[420342866,1776005435900,-266.77253572,0.00029138,2]
[420342867,1776005435922,-416.0,0.00029138,2]
[420342868,1776005435931,-244.16,0.00029397,2]
[420342869,1776005435943,-150.0,0.00029534,2]
[420342870,1776005435981,-500.0,0.0003,7]
[420342871,1776005435991,-151.0,0.0003,14]
[420342872,1776005436017,-151.0,0.0003,2]
[420342873,1776005436027,-388.49,0.0003,7]
[420342874,1776005436040,-250.0,0.00030029,15]
[420342875,1776005436067,-168.0,0.00030116,2]
[420342876,1776005436078,-151.0,0.00030136,2]
[420342877,1776005436087,-151.0,0.00030136,7]
[420342878,1776005436112,-150.0,0.00030136,7]
[420342879,1776005436123,-150.0,0.00030136,7]
[420342880,1776005436135,-150.0,0.00030136,7]
[420342881,1776005436145,-165.427,0.00030136,7]
[420342882,1776005436157,-151.268699,0.00030137,2]
[420342883,1776005436170,-509.0,0.00030441,5]
[420342884,1776005436182,-155.01,0.000305,7]
[420342885,1776005436194,-271.0,0.00030572,30]
[420342886,1776005436207,-1231.0,0.00030572,30]
[420342887,1776005436224,-168.0,0.00030609,2]
[420342888,1776005436237,-150.0,0.00030653,30]
[420342889,1776005436257,-170.43091707,0.00030847,2]
[420342890,1776005436267,-165.661,0.000309,2]
[420342891,1776005436289,-150.0,0.00031011,2]
[420342892,1776005436320,-168.0,0.00031265,2]
[420342893,1776005436357,-2000.0,0.00031399,2]
[420342894,1776005436367,-388.49,0.000319,7]
[420342895,1776005436393,-2931.83086402,0.00031939,2]
[420342896,1776005436442,-39949.07553598,0.00031939,2]
[420342897,1776005436451,-500.0,0.00031973,5]
[420342898,1776005436472,-500.0,0.00031973,2]
[420342899,1776005436484,-500.0,0.00031973,5]
[420342900,1776005436494,-500.0,0.00031973,5]
[420342901,1776005436528,-500.0,0.00031973,5]
[420342902,1776005436538,-190.14888051,0.00031973,5]
[420342903,1776005436557,-500.0,0.00031973,5]
[420342904,1776005436569,-500.0,0.00031973,5]
[420342905,1776005436581,-500.0,0.00031973,5]
[420342906,1776005436594,-500.0,0.00031973,5]
[420342907,1776005436624,-500.0,0.00032,7]
[420342908,1776005436634,-415.0,0.00032138,2]
[420342909,1776005436643,-150.0,0.00032524,30]
[420342910,1776005436667,-150.0,0.00032562,2]
[420342911,1776005436676,-156.0,0.00032834,30]
[420342912,1776005436687,-160.0,0.00032834,30]
[420342913,1776005436704,-170.43091707,0.00032836,2]
[420342914,1776005436714,-162.0,0.00032836,30]
[420342915,1776005436723,-161.0,0.00032836,30]
[420342916,1776005436733,-156.0,0.00032836,30]
[420342917,1776005436746,-153.0,0.00032836,30]
[420342918,1776005436755,-162.0,0.00032836,30]
[420342919,1776005436764,-157.0,0.00032838,30]
[420342920,1776005436774,-155.01,0.00033,30]
[420342921,1776005436787,-151.0,0.00033,7]
[420342922,1776005436798,-151.0,0.00033,5]
[420342923,1776005436808,-16389.63,0.00033099,2]
[420342924,1776005436819,-587.74,0.00033142,120]
[420342925,1776005436837,-151.0,0.00033166,7]
[420342926,1776005436847,-151.0,0.00033166,7]
[420342927,1776005436858,-255.55144453,0.00033462,30]
[420342928,1776005436887,-509.0,0.00033745,9]
[420342929,1776005436899,-388.49,0.000338,7]
[420342930,1776005436914,-156.0,0.00033834,30]
[420342931,1776005436937,-160.0,0.00033834,30]
[420342932,1776005436950,-162.0,0.00033836,30]
[420342933,1776005436963,-156.0,0.00033836,30]
[420342934,1776005436974,-153.0,0.00033836,30]
[420342935,1776005436990,-162.0,0.00033836,30]
[420342936,1776005437011,-157.0,0.00033838,30]
[420342937,1776005437023,-167.76,0.00033943,2]
[420342938,1776005437033,-250.0,0.00034225,35]
[420342939,1776005437047,-200.0,0.00034256,10]
[420342940,1776005437072,-219.8811508,0.00034276,60]
[420342941,1776005437081,-151.0,0.00034291,14]
[420342942,1776005437094,-150.0,0.00034395,30]
[420342943,1776005437123,-2000.0,0.00034539,2]
[420342944,1776005437175,-1500.0,0.00034795,2]
[420342945,1776005437193,-170.43091707,0.00034825,2]
[420342946,1776005437205,-162.0,0.00034834,30]
[420342947,1776005437244,-160.0,0.00034834,30]
[420342948,1776005437274,-162.0,0.00034836,30]
[420342949,1776005437284,-153.0,0.00034836,30]
[420342950,1776005437297,-171.0,0.00034836,30]
[420342951,1776005437329,-157.0,0.00034838,30]
[420342952,1776005437338,-500.0,0.00034999,15]
[420342953,1776005437349,-151.0,0.00035,14]
[420342954,1776005437362,-1274.76,0.000354,120]
[420342955,1776005437377,-500.0,0.00035616,120]
[420342956,1776005437386,-155.01,0.000358,30]
[420342957,1776005437403,-160.0,0.00035834,30]
[420342958,1776005437435,-162.0,0.00035836,30]
[420342959,1776005437453,-153.0,0.00035836,30]
[420342960,1776005437470,-159.0,0.00035838,30]
[420342963,1776005437772,-171.2366,0.00036,2]
[420342964,1776005437834,-150.0,0.00036266,30]
[420342965,1776005437898,-150.0,0.00036383,22]
[420342966,1776005437925,-2500.0,0.00036438,21]
[420342968,1776005437936,-1100.0,0.00036438,21]
[420342970,1776005437948,-1226.6269,0.00036438,2]
[420342972,1776005437984,-170.43091707,0.00036815,2]
[420342974,1776005438009,-160.0,0.00036834,30]
[420342975,1776005438019,-162.0,0.00036836,30]
[420342977,1776005438029,-153.0,0.00036836,30]
[420342978,1776005438040,-175.0002057,0.00036944,2]
[420342979,1776005438062,-8334.2345094,0.00036944,2]
[420342980,1776005438072,-198.07,0.00036986,43]
[420342981,1776005438081,-151.0,0.00036993,7]
[420342982,1776005438097,-161.77898451,0.00036993,7]
[420342983,1776005438111,-200.0,0.00036993,7]
[420342984,1776005438121,-240.0,0.00036997,43]
[420342985,1776005438136,-250.0,0.00036997,43]
[420342986,1776005438150,-500.0,0.00036998,120]
[420342987,1776005438160,-3000.0,0.00037,30]
[420342988,1776005438171,-3000.0,0.00037,30]
[420342989,1776005438187,-509.0,0.00037049,12]
[420342990,1776005438198,-2000.0,0.00037052,120]
[420342991,1776005438214,-1574.0,0.00037075,11]
[420342992,1776005438224,-162.0,0.00037075,11]
[420342993,1776005438235,-500.0,0.00037096,120]
[420342994,1776005438250,-2000.0,0.00037107,120]
[420342995,1776005438262,-2000.0,0.00037162,120]
[420342996,1776005438272,-239.88288746,0.00037204,2]
[420342997,1776005438281,-2000.0,0.00037216,120]
[420342998,1776005438298,-250.0,0.00037232,44]
[420342999,1776005438307,-151.0,0.0003726,7]
[420343000,1776005438317,-151.0,0.0003726,7]
[420343001,1776005438331,-2500.0,0.0003726,21]
[420343002,1776005438347,-1100.0,0.0003726,21]
[420343003,1776005438356,-2000.0,0.00037271,120]
[420343004,1776005438369,-495.9,0.00037273,30]
[420343005,1776005438389,-162.0,0.00037316,11]
[420343006,1776005438400,-2000.0,0.00037326,120]
[420343007,1776005438412,-1000.0,0.00037342,7]
[420343008,1776005438433,-1085.82,0.0003735,45]
[420343009,1776005438444,-2500.0,0.0003738,5]
[420343010,1776005438465,-2000.0,0.00037381,120]
[420343011,1776005438483,-563.0,0.000374,5]
[420343012,1776005438499,-2164.72550862,0.00037412,7]
[420343013,1776005438514,-500.0,0.00037435,15]
[420343015,1776005438526,-2000.0,0.00037436,120]
[420343016,1776005438543,-150.0,0.00037436,7]
[420343017,1776005438555,-493.61857295,0.00037468,2]
[420343018,1776005438567,-2000.0,0.0003749,120]
[420343019,1776005438583,-216.0,0.00037503,10]
[420343020,1776005438598,-493.0,0.00037507,2]
[420343021,1776005438612,-493.0,0.00037528,2]
[420343022,1776005438624,-493.0,0.00037533,2]
[420343023,1776005438644,-2000.0,0.00037545,120]
[420343024,1776005438659,-152.0,0.00037548,6]
[420343025,1776005438678,-493.0,0.00037549,2]
[420343026,1776005438703,-587.74,0.0003758,120]
[420343028,1776005438729,-2000.0,0.000376,120]
[420343030,1776005438750,-150.0,0.00037627,7]
[420343032,1776005438770,-493.0,0.00037649,2]
[420343033,1776005438783,-2000.0,0.00037655,120]
[420343035,1776005438800,-3065.25,0.00037666,2]
[420343037,1776005438814,-2000.0,0.00037679,2]
[420343039,1776005438827,-150.0,0.00037686,7]
[420343041,1776005438841,-493.0,0.00037698,2]
[420343043,1776005438854,-1564.87,0.000377,120]
[420343044,1776005438871,-1564.87,0.000377,120]
[420343046,1776005438888,-1564.87,0.000377,120]
[420343048,1776005438905,-1564.87,0.000377,120]
[420343050,1776005438918,-1629.55,0.000377,120]
[420343053,1776005438938,-1564.87,0.000377,120]
[420343055,1776005438951,-971.91,0.000377,120]
[420343057,1776005438976,-2000.0,0.0003771,120]
[420343058,1776005438986,-1574.0,0.00037715,11]
[420343060,1776005439000,-1574.0,0.00037729,11]
[420343062,1776005439024,-2000.0,0.00037764,120]
[420343064,1776005439035,-210.120729,0.000378,15]
[420343066,1776005439045,-151.0,0.00037819,7]
[420343068,1776005439065,-151.0,0.00037819,7]
[420343070,1776005439075,-500.0,0.00037819,60]
[420343073,1776005439095,-500.57292885,0.00037819,60]
[420343075,1776005439109,-500.0,0.00037819,60]
[420343076,1776005439119,-500.0,0.00037819,60]
[420343079,1776005439134,-500.0,0.00037819,60]
[420343081,1776005439143,-500.0,0.00037819,60]
[420343082,1776005439157,-500.0,0.00037819,60]
[420343084,1776005439177,-300.0,0.00037819,60]
[420343086,1776005439187,-500.0,0.00037819,60]
[420343088,1776005439199,-500.0,0.00037819,60]
[420343090,1776005439211,-500.0,0.00037819,60]
[420343092,1776005439222,-500.0,0.00037819,60]
[420343094,1776005439231,-500.0,0.00037819,60]
[420343096,1776005439241,-500.0,0.00037819,60]
[420343098,1776005439254,-500.0,0.00037819,60]
[420343100,1776005439267,-500.0,0.00037819,60]
[420343102,1776005439276,-500.0,0.00037819,60]
[420343104,1776005439289,-500.0,0.00037819,60]
[420343106,1776005439302,-500.0,0.00037819,60]
[420343108,1776005439311,-500.0,0.00037819,60]
[420343110,1776005439320,-233.00628845,0.00037819,60]
[420343112,1776005439332,-484.91032443,0.00037819,60]
[420343113,1776005439348,-500.0,0.00037819,60]
[420343116,1776005439358,-500.0,0.00037819,60]
[420343118,1776005439372,-500.0,0.00037819,60]
[420343119,1776005439404,-500.0,0.00037819,60]
[420343121,1776005439422,-500.0,0.00037819,60]
[420343123,1776005439438,-500.0,0.00037819,60]
[420343125,1776005439456,-500.0,0.00037819,60]
[420343127,1776005439476,-150.0,0.00037819,60]
[420343129,1776005439490,-500.0,0.00037819,60]
[420343131,1776005439509,-500.0,0.00037819,60]
[420343133,1776005439528,-500.0,0.00037819,60]
[420343135,1776005439539,-150.0,0.00037819,60]
[420343137,1776005439580,-346.9686725,0.00037819,60]
[420343139,1776005439595,-500.0,0.00037819,60]
[420343141,1776005439618,-500.0,0.00037819,60]
[420343143,1776005439628,-150.13595455,0.00037819,60]
[420343146,1776005439642,-500.0,0.00037819,60]
[420343147,1776005439662,-500.0,0.00037819,60]
[420343151,1776005439678,-500.0,0.00037819,60]
[420343152,1776005439693,-500.0,0.00037819,60]
[420343154,1776005439702,-500.0,0.00037819,60]
[420343156,1776005439736,-500.0,0.00037819,60]
[420343158,1776005439757,-500.0,0.00037819,60]
[420343161,1776005439788,-500.0,0.00037819,60]
[420343162,1776005439801,-500.0,0.00037819,60]
[420343164,1776005439813,-500.0,0.00037819,60]
[420343167,1776005439836,-363.22293834,0.00037819,60]
[420343169,1776005439851,-500.0,0.00037819,60]
[420343170,1776005439860,-500.0,0.00037819,60]
[420343172,1776005439870,-176.37308167,0.00037819,60]
[420343174,1776005439879,-380.0,0.00037819,60]
[420343176,1776005439895,-500.0,0.00037819,60]
[420343178,1776005439910,-500.0,0.00037819,60]
[420343180,1776005439920,-500.0,0.00037819,60]
[420343182,1776005439930,-500.0,0.00037819,60]
[420343184,1776005439943,-500.0,0.00037819,60]
[420343187,1776005439953,-500.0,0.00037819,60]
[420343189,1776005439963,-2000.0,0.00037819,120]
[420343191,1776005439973,-493.0,0.00037822,2]
[420343192,1776005439984,-160.0,0.00037834,30]
[420343194,1776005439995,-162.0,0.00037836,30]
[420343196,1776005440005,-153.0,0.00037836,30]
[420343198,1776005440015,-493.0,0.00037855,2]
[420343200,1776005440030,-493.0,0.00037857,2]
[420343202,1776005440042,-500.0,0.00037873,5]
[420343205,1776005440053,-2000.0,0.00037874,120]
[420343207,1776005440063,-12500.0,0.000379,13]
[420343208,1776005440080,-200.0,0.000379,10]
[420343210,1776005440092,-2000.0,0.00037929,120]
[420343212,1776005440102,-150.0,0.00037946,7]
[420343214,1776005440111,-1574.0,0.00037972,11]
[420343216,1776005440138,-5491.0,0.00037973,120]
[420343218,1776005440151,-20934.0,0.00037973,120]
[420343220,1776005440176,-238.29748426,0.00037973,5]
[420343222,1776005440199,-152.85468521,0.00037975,7]
[420343224,1776005440224,-150.0,0.00037976,7]
[420343227,1776005440238,-2000.0,0.00037984,120]
[420343229,1776005440274,-162.0,0.0003799,11]
[420343230,1776005440288,-500.0,0.00037999,15]
[420343232,1776005440322,-2500.0,0.00037999,5]
[420343234,1776005440334,-20020.19357506,0.00038,120]
[420343236,1776005440349,-178645.0,0.00038,2]
[420343238,1776005440360,-29504.286797,0.00038,120]
[420343240,1776005440370,-151.0,0.00038,7]
[420343242,1776005440381,-151.0,0.00038,7]